fUST/lending_fUST_20241030
["ID","MTS","AMOUNT","RATE_DAILY","PERIOD"]
[340998200,1730226641477,-236.162503,0.00021021,2]
[340998201,1730226641487,-236.162503,0.00021077,2]
[340998202,1730226641496,-236.162503,0.00021133,2]
[340998203,1730226641506,-236.162503,0.00021188,2]
[340998204,1730226641515,-236.162503,0.00021244,2]
[340998205,1730226641524,-236.162503,0.000213,2]
[340998206,1730226641534,-236.162503,0.00021355,2]
[340998207,1730226641546,-610.9,0.00021807,3]
[340998208,1730226641555,-177.84,0.00021807,3]
[340998209,1730226641565,-9221.26633635,0.00021817,2]
[340998210,1730226641580,-1000.0,0.00021817,2]
[340998211,1730226641594,-500.0,0.00021916,2]
[340998212,1730226641605,-474.14069993,0.00021916,2]
[340998213,1730226641615,-500.0,0.00021917,3]
[340998214,1730226641625,-500.0,0.00021917,3]
[340998215,1730226641635,-500.0,0.00021917,3]
[340998216,1730226641644,-522.29823955,0.00021917,3]
[340998217,1730226641654,-571.30905243,0.00021917,3]
[340998218,1730226641664,-500.0,0.00021917,3]
[340998219,1730226641674,-371.89891622,0.00021917,3]
[340998220,1730226641684,-500.0,0.00021917,3]
[340998221,1730226641694,-500.0,0.00021917,3]
[340998222,1730226641704,-516.77938739,0.00021917,3]
[340998223,1730226641713,-500.0,0.00021917,3]
[340998224,1730226641723,-500.0,0.00021917,3]
[340998225,1730226641733,-500.0,0.00021917,3]
[340998226,1730226641743,-500.0,0.00021917,3]
[340998227,1730226641753,-504.91730222,0.00021917,3]
[340998228,1730226641763,-504.01789539,0.00021917,3]
[340998229,1730226641773,-500.0,0.00021917,3]
[340998230,1730226641782,-500.0,0.00021917,3]
[340998231,1730226641793,-500.0,0.00021917,3]
[340998232,1730226641803,-568.50564606,0.00021917,3]
[340998233,1730226641813,-502.79081002,0.00021917,3]
[340998234,1730226641823,-500.0,0.00021917,3]
[340998235,1730226641833,-155.6694001,0.00021917,3]
[340998236,1730226641843,-500.0,0.00021917,3]
[340998237,1730226641853,-500.0,0.00021917,3]
[340998238,1730226641863,-500.0,0.00021917,3]
[340998239,1730226641873,-500.0,0.00021917,3]
[340998240,1730226641882,-500.0,0.00021917,3]
[340998241,1730226641892,-500.0,0.00021917,3]
[340998242,1730226641902,-404.00016737,0.00021917,3]
[340998243,1730226641912,-500.0,0.00021917,3]
[340998244,1730226641922,-532.14017448,0.00021917,3]
[340998245,1730226641932,-500.0,0.00021917,3]
[340998246,1730226641942,-505.6077641,0.00021917,3]
[340998247,1730226641952,-500.0,0.00021917,3]
[340998248,1730226641961,-503.42766475,0.00021917,3]
[340998249,1730226641970,-500.0,0.00021917,3]
[340998250,1730226641980,-500.0,0.00021917,2]
[340998251,1730226641989,-500.0,0.00021917,3]
[340998252,1730226641999,-500.69750789,0.00021917,3]
[340998253,1730226642008,-500.0,0.00021917,3]
[340998254,1730226642017,-500.0,0.00021917,3]
[340998255,1730226642027,-522.71094038,0.00021917,3]
[340998256,1730226642037,-500.0,0.00021917,3]
[340998257,1730226642048,-500.0,0.00021917,2]
[340998258,1730226642058,-500.0,0.00021917,3]
[340998259,1730226642068,-500.0,0.00021917,3]
[340998260,1730226642078,-500.0,0.00021917,3]
[340998261,1730226642087,-500.0,0.00021917,3]
[340998262,1730226642096,-500.0,0.00021917,3]
[340998263,1730226642106,-500.0,0.00021917,3]
[340998264,1730226642115,-502.9405536,0.00021917,3]
[340998265,1730226642125,-504.73111834,0.00021917,3]
[340998266,1730226642134,-500.0,0.00021917,3]
[340998267,1730226642144,-504.59469775,0.00021917,3]
[340998268,1730226642154,-500.0,0.00021917,3]
[340998269,1730226642164,-500.0,0.00021917,3]
[340998270,1730226642178,-500.0,0.00021917,3]
[340998271,1730226642187,-500.0,0.00021917,3]
[340998272,1730226642198,-500.0,0.00021917,3]
[340998273,1730226642212,-285.37715795,0.00021917,3]
[340998274,1730226642222,-500.0,0.00021917,3]
[340998275,1730226642232,-500.0,0.00021917,3]
[340998276,1730226642242,-500.0,0.00021917,3]
[340998277,1730226642252,-500.0,0.00021917,3]
[340998278,1730226642262,-500.97760822,0.00021917,3]
[340998279,1730226642272,-500.0,0.00021917,3]
[340998280,1730226642283,-500.0,0.00021917,3]
[340998281,1730226642294,-517.18698381,0.00021917,3]
[340998282,1730226642304,-500.0,0.00021917,3]
[340998283,1730226642313,-498.13824609,0.00021917,3]
[340998284,1730226642323,-502.12206386,0.00021917,3]
[340998285,1730226642333,-500.0,0.00021917,3]
[340998286,1730226642342,-500.0,0.00021917,3]
[340998287,1730226642352,-500.0,0.00021917,3]
[340998288,1730226642362,-500.77028733,0.00021917,3]
[340998289,1730226642372,-500.0,0.00021917,3]
[340998290,1730226642382,-500.0,0.00021917,3]
[340998291,1730226642392,-500.0,0.00021917,3]
[340998292,1730226642402,-525.73447384,0.00021917,3]
[340998293,1730226642411,-500.0,0.00021917,3]
[340998294,1730226642421,-500.0,0.00021917,3]
[340998295,1730226642431,-502.06115809,0.00021917,3]
[340998296,1730226642441,-500.0,0.00021917,3]
[340998297,1730226642451,-500.0,0.00021917,3]
[340998298,1730226642460,-500.0,0.00021917,3]
[340998299,1730226642471,-500.0,0.00021917,3]
[340998300,1730226642481,-502.73091166,0.00021917,3]
[340998301,1730226642491,-263.25440655,0.00021917,3]
[340998302,1730226642500,-500.0,0.00021917,3]
[340998303,1730226642510,-500.0,0.00021917,3]
[340998304,1730226642520,-500.0,0.00021917,3]
[340998305,1730226642531,-500.0,0.00021917,3]
[340998306,1730226642541,-505.59435837,0.00021917,3]
[340998307,1730226642552,-502.20684408,0.00021917,3]
[340998308,1730226642562,-500.0,0.00021917,3]
[340998309,1730226642572,-500.0,0.00021917,3]
[340998310,1730226642582,-502.82835036,0.00021917,3]
[340998311,1730226642592,-500.0,0.00021917,3]
[340998312,1730226642602,-500.0,0.00021917,3]
[340998313,1730226642612,-500.0,0.00021917,3]
[340998314,1730226642621,-500.0,0.00021917,3]
[340998315,1730226642631,-500.0,0.00021917,3]
[340998316,1730226642640,-502.73180508,0.00021917,3]
[340998317,1730226642650,-500.0,0.00021917,3]
[340998318,1730226642663,-500.0,0.00021917,3]
[340998319,1730226642672,-501.80012317,0.00021917,3]
[340998320,1730226642683,-500.0,0.00021917,3]
[340998321,1730226642694,-500.0,0.00021917,3]
[340998322,1730226642705,-502.20381886,0.00021917,3]
[340998323,1730226642715,-500.0,0.00021917,3]
[340998324,1730226642725,-500.0,0.00021917,3]
[340998325,1730226642734,-502.60274595,0.00021917,3]
[340998326,1730226642744,-500.0,0.00021917,3]
[340998327,1730226642754,-502.73674925,0.00021917,3]
[340998328,1730226642765,-500.0,0.00021917,3]
[340998329,1730226642774,-500.0,0.00021917,3]
[340998330,1730226642785,-500.0,0.00021917,3]
[340998331,1730226642800,-500.0,0.00021917,3]
[340998332,1730226642810,-503.16593901,0.00021917,3]
[340998333,1730226642820,-527.10213357,0.00021917,3]
[340998334,1730226642830,-340.31462506,0.00021917,3]
[340998335,1730226642839,-500.0,0.00021917,3]
[340998336,1730226642848,-500.0,0.00021917,3]
[340998337,1730226642858,-500.0,0.00021917,3]
[340998338,1730226642868,-503.55059547,0.00021917,3]
[340998339,1730226642878,-500.0,0.00021917,3]
[340998340,1730226642888,-500.0,0.00021917,3]
[340998342,1730226642898,-500.0,0.00021917,3]
[340998344,1730226642908,-500.0,0.00021917,3]
[340998346,1730226642917,-500.0,0.00021917,3]
[340998348,1730226642927,-178.06325928,0.00021917,3]
[340998349,1730226642938,-500.0,0.00021917,3]
[340998350,1730226642948,-500.0,0.00021917,3]
[340998351,1730226642958,-501.71050376,0.00021917,3]
[340998353,1730226642968,-328.59,0.00021917,3]
[340998355,1730226642978,-500.0,0.00021917,3]
[340998357,1730226642988,-500.0,0.00021917,3]
[340998359,1730226642998,-500.0,0.00021917,3]
[340998360,1730226643007,-500.0,0.00021917,3]
[340998361,1730226643017,-500.0,0.00021917,3]
[340998362,1730226643027,-500.0,0.00021917,3]
[340998363,1730226643037,-505.49010198,0.00021917,3]
[340998364,1730226643049,-500.0,0.00021917,3]
[340998365,1730226643059,-520.21522862,0.00021917,3]
[340998366,1730226643068,-500.0,0.00021917,3]
[340998367,1730226643078,-500.0,0.00021917,3]
[340998368,1730226643088,-500.0,0.00021917,3]
[340998369,1730226643098,-514.95902834,0.00021917,3]
[340998372,1730226643236,-500.0,0.00021917,3]
[340998373,1730226643247,-501.82290906,0.00021917,3]
[340998374,1730226643257,-500.98375059,0.00021917,3]
[340998375,1730226643266,-500.0,0.00021917,3]
[340998376,1730226643276,-501.07237061,0.00021917,3]
[340998377,1730226643285,-500.0,0.00021917,3]
[340998378,1730226643298,-500.0,0.00021917,3]
[340998379,1730226643307,-500.0,0.00021917,3]
[340998380,1730226643316,-500.0,0.00021917,3]
[340998381,1730226643326,-500.0,0.00021917,3]
[340998382,1730226643335,-500.0,0.00021917,2]
[340998383,1730226643345,-500.0,0.00021917,3]
[340998384,1730226643355,-500.0,0.00021917,3]
[340998385,1730226643364,-505.10826291,0.00021917,3]
[340998387,1730226643374,-500.0,0.00021917,3]
[340998388,1730226643383,-524.31384625,0.00021917,3]
[340998389,1730226643394,-500.0,0.00021917,3]
[340998390,1730226643403,-500.0,0.00021917,3]
[340998391,1730226643414,-500.0,0.00021917,3]
[340998392,1730226643424,-500.0,0.00021917,3]
[340998393,1730226643433,-500.0,0.00021917,3]
[340998394,1730226643443,-502.9004759,0.00021917,3]
[340998395,1730226643453,-500.0,0.00021917,3]
[340998396,1730226643464,-507.94905745,0.00021917,3]
[340998397,1730226643473,-511.48392578,0.00021917,3]
[340998398,1730226643483,-500.0,0.00021917,3]
[340998399,1730226643493,-501.36152025,0.00021917,3]
[340998400,1730226643503,-501.58794919,0.00021917,3]
[340998401,1730226643512,-500.0,0.00021917,3]
[340998402,1730226643523,-435.85726154,0.00021917,3]
[340998403,1730226643533,-506.67717453,0.00021917,3]
[340998404,1730226643545,-500.0,0.00021917,3]
[340998405,1730226643555,-500.0,0.00021917,3]
[340998406,1730226643565,-500.0,0.00021917,3]
[340998407,1730226643575,-504.70785152,0.00021917,3]
[340998408,1730226643586,-500.0,0.00021917,3]
[340998409,1730226643595,-500.0,0.00021917,3]
[340998410,1730226643605,-437.23019936,0.00021917,3]
[340998411,1730226643616,-500.0,0.00021917,3]
[340998412,1730226643626,-500.0,0.00021917,3]
[340998413,1730226643636,-500.0,0.00021917,2]
[340998415,1730226643646,-500.0,0.00021917,3]
[340998416,1730226643656,-500.0,0.00021917,3]
[340998417,1730226643667,-500.0,0.00021917,3]
[340998418,1730226643678,-500.0,0.00021917,3]
[340998419,1730226643689,-500.0,0.00021917,3]
[340998420,1730226643699,-502.82319273,0.00021917,3]
[340998421,1730226643709,-500.0,0.00021917,3]
[340998422,1730226643719,-308.29144858,0.00021917,3]
[340998423,1730226643729,-500.0,0.00021917,3]
[340998424,1730226643739,-500.0,0.00021917,2]
[340998425,1730226643749,-151.0,0.00021917,2]
[340998426,1730226643759,-500.0,0.00021917,3]
[340998427,1730226643770,-564.37795731,0.00021917,3]
[340998428,1730226643780,-502.64655626,0.00021917,3]
[340998429,1730226643791,-500.0,0.00021917,3]
[340998430,1730226643801,-500.0,0.00021917,3]
[340998431,1730226643811,-417.85233145,0.00021917,3]
[340998432,1730226643821,-502.65966867,0.00021917,3]
[340998433,1730226643831,-500.0,0.00021917,3]
[340998434,1730226643840,-500.0,0.00021917,3]
[340998435,1730226643850,-500.0,0.00021917,3]
[340998436,1730226643861,-500.0,0.00021917,3]
[340998437,1730226643871,-500.0,0.00021917,3]
[340998438,1730226643881,-500.0,0.00021917,3]
[340998439,1730226643892,-500.90181123,0.00021917,3]
[340998440,1730226643903,-500.0,0.00021917,3]
[340998441,1730226643913,-500.0,0.00021917,3]
[340998442,1730226643923,-500.0,0.00021917,3]
[340998443,1730226643933,-501.3037875,0.00021917,3]
[340998444,1730226643943,-500.0,0.00021917,3]
[340998445,1730226643953,-500.0,0.00021917,3]
[340998446,1730226643963,-500.0,0.00021917,3]
[340998447,1730226643973,-500.0,0.00021917,3]
[340998448,1730226643983,-300.0,0.00021917,3]
[340998449,1730226643994,-500.0,0.00021917,3]
[340998450,1730226644004,-500.0,0.00021917,3]
[340998451,1730226644014,-500.0,0.00021917,3]
[340998452,1730226644024,-500.0,0.00021917,3]
[340998453,1730226644034,-500.0,0.00021917,3]
[340998454,1730226644046,-500.0,0.00021917,3]
[340998455,1730226644056,-500.0,0.00021917,3]
[340998456,1730226644067,-500.0,0.00021917,3]
[340998457,1730226644077,-500.0,0.00021917,3]
[340998458,1730226644086,-500.0,0.00021917,3]
[340998459,1730226644096,-500.0,0.00021917,3]
[340998460,1730226644106,-501.67857467,0.00021917,3]
[340998461,1730226644115,-500.0,0.00021917,3]
[340998462,1730226644125,-513.58767963,0.00021917,3]
[340998463,1730226644135,-500.0,0.00021917,3]
[340998464,1730226644144,-500.0,0.00021917,3]
[340998465,1730226644155,-500.0,0.00021917,3]
[340998466,1730226644165,-582.13661862,0.00021917,3]
[340998467,1730226644179,-500.0,0.00021917,3]
[340998468,1730226644189,-500.0,0.00021917,3]
[340998469,1730226644199,-151.0,0.00021917,2]
[340998470,1730226644208,-500.90247446,0.00021917,3]
[340998471,1730226644218,-500.0,0.00021917,3]
[340998472,1730226644228,-500.0,0.00021917,3]
[340998473,1730226644237,-502.66061074,0.00021917,3]
[340998474,1730226644247,-503.42407765,0.00021917,3]
[340998475,1730226644258,-500.0,0.00021917,3]
[340998476,1730226644269,-500.0,0.00021917,3]
[340998477,1730226644278,-500.0,0.00021917,3]
[340998478,1730226644288,-500.0,0.00021917,3]
[340998479,1730226644299,-569.44010916,0.00021917,3]
[340998480,1730226644308,-508.39396728,0.00021917,3]
[340998481,1730226644318,-500.0,0.00021917,3]
[340998482,1730226644327,-500.0,0.00021917,3]
[340998483,1730226644337,-501.2710608,0.00021917,3]
[340998484,1730226644347,-600.84085266,0.00021917,3]
[340998485,1730226644357,-500.0,0.00021917,3]
[340998486,1730226644366,-500.0,0.00021917,3]
[340998487,1730226644376,-500.0,0.00021917,3]
[340998488,1730226644385,-636.40968283,0.00021917,3]
[340998489,1730226644396,-500.0,0.00021917,3]
[340998490,1730226644405,-501.70082091,0.00021917,3]
[340998491,1730226644414,-500.0,0.00021917,3]
[340998492,1730226644424,-507.43055704,0.00021917,3]
[340998493,1730226644434,-500.0,0.00021917,3]
[340998494,1730226644443,-500.0,0.00021917,3]
[340998495,1730226644453,-500.0,0.00021917,3]
[340998496,1730226644463,-299.26759721,0.00021917,3]
[340998497,1730226644473,-500.0,0.00021917,3]
[340998498,1730226644483,-500.0,0.00021917,3]
[340998499,1730226644493,-501.61851017,0.00021917,3]
[340998500,1730226644503,-500.0,0.00021917,3]
[340998501,1730226644513,-500.48027611,0.00021917,3]
[340998503,1730226644523,-226.30846144,0.00021917,3]
[340998504,1730226644858,-273.69153856,0.00021917,3]
[340998505,1730226644868,-500.0,0.00021917,3]
[340998506,1730226644879,-500.0,0.00021917,3]
[340998507,1730226644890,-362.01331482,0.00021917,3]
[340998508,1730226644899,-500.0,0.00021917,3]
[340998509,1730226644910,-500.0,0.00021917,3]
[340998510,1730226644920,-151.0,0.00021917,2]
[340998511,1730226644929,-151.0,0.00021917,2]
[340998512,1730226644938,-62.29514662,0.00021917,3]
[340998530,1730226646574,-422.76974132,0.00021917,3]
[340998531,1730226646666,-14.93511206,0.00021917,3]
[340998532,1730226646677,-500.0,0.00021917,3]
[340998533,1730226646687,-503.37469803,0.00021917,3]
[340998534,1730226646698,-500.0,0.00021917,3]
[340998535,1730226646708,-500.0,0.00021917,3]
[340998536,1730226646718,-500.0,0.00021917,3]
[340998537,1730226646727,-500.0,0.00021917,3]
[340998538,1730226646737,-500.0,0.00021917,3]
[340998539,1730226646747,-500.0,0.00021917,3]
[340998540,1730226646757,-500.0,0.00021917,3]
[340998541,1730226646766,-501.67577705,0.00021917,3]
[340998542,1730226646777,-500.0,0.00021917,3]
[340998543,1730226646787,-606.0298968,0.00021917,3]
[340998544,1730226646800,-500.0,0.00021917,3]
[340998545,1730226646811,-500.0,0.00021917,3]
[340998546,1730226646825,-506.62177463,0.00021917,3]
[340998547,1730226646835,-500.0,0.00021917,3]
[340998548,1730226646845,-500.0,0.00021917,3]
[340998549,1730226646854,-403.30549464,0.00021917,3]
[340998550,1730226646864,-501.40516746,0.00021917,3]
[340998551,1730226646874,-502.71333496,0.00021917,3]
[340998552,1730226646883,-500.0,0.00021917,3]
[340998553,1730226646892,-500.0,0.00021917,3]
[340998554,1730226646901,-500.0,0.00021917,3]
[340998555,1730226646911,-501.11269407,0.00021917,3]
[340998556,1730226646921,-517.46289073,0.00021917,3]
[340998557,1730226646931,-500.0,0.00021917,3]
[340998558,1730226646941,-500.0,0.00021917,3]
[340998559,1730226646951,-500.0,0.00021917,3]
[340998560,1730226646961,-502.46448374,0.00021917,3]
[340998561,1730226646971,-500.0,0.00021917,3]
[340998562,1730226646981,-500.0,0.00021917,3]
[340998563,1730226646991,-151.0,0.00021917,2]
[340998564,1730226647001,-151.0,0.00021917,2]
[340998565,1730226647010,-503.65975773,0.00021917,3]
[340998566,1730226647020,-500.0,0.00021917,3]
[340998567,1730226647029,-500.0,0.00021917,3]
[340998568,1730226647038,-500.0,0.00021917,3]
[340998569,1730226647048,-502.16074568,0.00021917,3]
[340998570,1730226647059,-500.0,0.00021917,3]
[340998571,1730226647069,-500.0,0.00021917,3]
[340998572,1730226647079,-500.0,0.00021917,3]
[340998573,1730226647089,-500.0,0.00021917,3]
[340998574,1730226647098,-501.87358156,0.00021917,3]
[340998575,1730226647108,-500.0,0.00021917,3]
[340998576,1730226647118,-500.0,0.00021917,3]
[340998577,1730226647129,-500.0,0.00021917,3]
[340998578,1730226647138,-635.51,0.00021917,3]
[340998579,1730226647149,-500.0,0.00021917,3]
[340998580,1730226647158,-500.0,0.00021917,3]
[340998581,1730226647168,-500.0,0.00021917,3]
[340998582,1730226647182,-500.0,0.00021917,3]
[340998583,1730226647192,-504.51061775,0.00021917,3]
[340998584,1730226647202,-500.0,0.00021917,3]
[340998585,1730226647212,-279.04955532,0.00021917,3]
[340998586,1730226647223,-500.0,0.00021917,3]
[340998587,1730226647233,-188.24636466,0.00021917,3]
[340998588,1730226647242,-502.42782202,0.00021917,3]
[340998589,1730226647253,-500.0,0.00021917,3]
[340998590,1730226647262,-500.0,0.00021917,3]
[340998591,1730226647272,-500.0,0.00021917,3]
[340998592,1730226647281,-151.0,0.00021917,2]
[340998593,1730226647290,-500.0,0.00021917,3]
[340998594,1730226647308,-504.11698583,0.00021917,3]
[340998595,1730226647318,-151.0,0.00021917,2]
[340998596,1730226647328,-500.0,0.00021917,3]
[340998597,1730226647337,-500.0,0.00021917,3]
[340998598,1730226647349,-500.0,0.00021917,3]
[340998599,1730226647359,-500.0,0.00021917,3]
[340998600,1730226647369,-502.1262742,0.00021917,3]
[340998601,1730226647379,-500.0,0.00021917,3]
[340998602,1730226647389,-500.0,0.00021917,3]
[340998603,1730226647400,-500.0,0.00021917,3]
[340998604,1730226647410,-500.0,0.00021917,3]
[340998605,1730226647419,-501.36544761,0.00021917,3]
[340998606,1730226647429,-500.0,0.00021917,3]
[340998607,1730226647439,-500.0,0.00021917,3]
[340998608,1730226647448,-500.0,0.00021917,3]
[340998609,1730226647458,-500.0,0.00021917,3]
[340998610,1730226647468,-500.0,0.00021917,3]
[340998611,1730226647477,-199.228734,0.00021917,2]
[340998612,1730226647487,-500.0,0.00021917,3]
[340998613,1730226647498,-501.07483311,0.00021917,3]
[340998614,1730226647507,-642.11,0.00021917,3]
[340998615,1730226647517,-500.0,0.00021917,3]
[340998616,1730226647527,-500.0,0.00021917,3]
[340998617,1730226647536,-501.50821653,0.00021917,3]
[340998618,1730226647550,-500.0,0.00021917,3]
[340998619,1730226647559,-151.0,0.00021917,2]
[340998620,1730226647569,-151.0,0.00021917,2]
[340998621,1730226647579,-1000.0,0.00021917,5]
[340998622,1730226647589,-500.0,0.00021917,3]
[340998623,1730226647598,-500.0,0.00021917,3]
[340998624,1730226647607,-500.0,0.00021917,3]
[340998625,1730226647617,-500.0,0.00021917,3]
[340998626,1730226647629,-501.5431987,0.00021917,3]
[340998627,1730226647638,-500.0,0.00021917,3]
[340998628,1730226647648,-500.0,0.00021917,3]
[340998629,1730226647658,-500.0,0.00021917,3]
[340998630,1730226647668,-500.0,0.00021917,3]
[340998631,1730226647677,-500.0,0.00021917,3]
[340998632,1730226647689,-500.0,0.00021917,3]
[340998633,1730226647698,-501.76608478,0.00021917,3]
[340998634,1730226647708,-500.0,0.00021917,3]
[340998635,1730226647718,-500.0,0.00021917,3]
[340998636,1730226647728,-522.86,0.00021917,3]
[340998637,1730226647738,-507.80829927,0.00021917,3]
[340998638,1730226647747,-500.0,0.00021917,3]
[340998639,1730226647757,-171.33832821,0.00021917,3]
[340998640,1730226647767,-500.0,0.00021917,3]
[340998641,1730226647776,-500.0,0.00021917,3]
[340998642,1730226647786,-151.0,0.00021917,2]
[340998643,1730226647797,-151.0,0.00021917,2]
[340998644,1730226647807,-151.0,0.00021917,2]
[340998645,1730226647816,-151.0,0.00021917,2]
[340998646,1730226647826,-501.03741219,0.00021917,3]
[340998647,1730226647835,-500.0,0.00021917,3]
[340998648,1730226647845,-500.0,0.00021917,3]
[340998649,1730226647854,-500.0,0.00021917,3]
[340998650,1730226647864,-572.27874582,0.00021917,3]
[340998651,1730226647873,-500.0,0.00021917,3]
[340998652,1730226647883,-419.44870416,0.00021917,3]
[340998653,1730226647892,-500.0,0.00021917,3]
[340998654,1730226647902,-500.0,0.00021917,3]
[340998655,1730226647911,-500.0,0.00021917,3]
[340998656,1730226647920,-500.0,0.00021917,3]
[340998657,1730226647929,-500.0,0.00021917,3]
[340998658,1730226647939,-500.0,0.00021917,3]
[340998659,1730226647948,-506.23208945,0.00021917,3]
[340998660,1730226647957,-500.0,0.00021917,3]
[340998661,1730226647966,-500.0,0.00021917,3]
[340998662,1730226647975,-500.0,0.00021917,3]
[340998663,1730226647985,-500.0,0.00021917,3]
[340998664,1730226647995,-500.0,0.00021917,3]
[340998665,1730226648004,-510.51765141,0.00021917,3]
[340998666,1730226648014,-501.52376611,0.00021917,3]
[340998667,1730226648024,-500.0,0.00021917,3]
[340998668,1730226648034,-523.60168968,0.00021917,3]
[340998669,1730226648043,-151.0,0.00021917,2]
[340998670,1730226648056,-500.0,0.00021917,3]
[340998671,1730226648065,-500.0,0.00021917,3]
[340998672,1730226648074,-500.0,0.00021917,3]
[340998673,1730226648083,-500.0,0.00021917,3]
[340998674,1730226648092,-500.0,0.00021917,3]
[340998675,1730226648102,-501.79310876,0.00021917,3]
[340998676,1730226648111,-503.07994026,0.00021917,3]
[340998677,1730226648120,-500.0,0.00021917,3]
[340998678,1730226648129,-500.0,0.00021917,3]
[340998679,1730226648139,-505.98087729,0.00021917,3]
[340998680,1730226648148,-500.0,0.00021917,3]
[340998681,1730226648157,-500.0,0.00021917,3]
[340998682,1730226648167,-500.0,0.00021917,3]
[340998683,1730226648180,-500.0,0.00021917,3]
[340998684,1730226648190,-500.0,0.00021917,3]
[340998685,1730226648199,-500.0,0.00021917,3]
[340998686,1730226648209,-503.11296909,0.00021917,3]
[340998687,1730226648219,-500.0,0.00021917,3]
[340998688,1730226648228,-500.0,0.00021917,3]
[340998689,1730226648238,-500.0,0.00021917,3]
[340998690,1730226648249,-500.0,0.00021917,3]
[340998691,1730226648259,-500.0,0.00021917,3]
[340998692,1730226648269,-500.0,0.00021917,3]
[340998693,1730226648278,-1192.76,0.00021917,2]
[340998694,1730226648287,-1192.76,0.00021917,2]
[340998695,1730226648299,-1192.76,0.00021917,2]
[340998696,1730226648309,-1192.76,0.00021917,2]
[340998697,1730226648319,-500.0,0.00021917,3]
[340998698,1730226648328,-1192.76,0.00021917,2]
[340998699,1730226648338,-1192.76,0.00021917,2]
[340998700,1730226648348,-1192.76,0.00021917,2]
[340998701,1730226648358,-1192.76,0.00021917,2]
[340998702,1730226648368,-1192.76,0.00021917,2]
[340998703,1730226648377,-1192.76,0.00021917,2]
[340998704,1730226648387,-1192.76,0.00021917,2]
[340998705,1730226648396,-500.0,0.00021917,3]
[340998706,1730226648406,-1192.76,0.00021917,2]
[340998707,1730226648502,-500.0,0.00021917,3]
[340998708,1730226648513,-1192.76,0.00021917,2]
[340998709,1730226648523,-500.0,0.00021917,3]
[340998710,1730226648532,-500.8260841,0.00021917,3]
[340998711,1730226648542,-500.0,0.00021917,3]
[340998712,1730226648553,-500.0,0.00021917,3]
[340998713,1730226648562,-500.0,0.00021917,3]
[340998714,1730226648572,-514.82932948,0.00021917,3]
[340998715,1730226648582,-500.0,0.00021917,3]
[340998716,1730226648591,-156.560815,0.00021917,2]
[340998717,1730226648600,-500.0,0.00021917,3]
[340998718,1730226648610,-500.0,0.00021917,3]
[340998719,1730226648620,-500.0,0.00021917,3]
[340998720,1730226648629,-500.0,0.00021917,3]
[340998721,1730226648639,-508.485802,0.00021917,3]
[340998722,1730226648649,-46.6894453,0.00021917,3]
[340998723,1730226785773,3280.48034772,0.00021917,7]
[340998724,1730226801101,273.37336231,0.00021917,7]
[340998725,1730226816537,273.37336231,0.00021917,7]
[340998726,1730226831398,273.37336231,0.00021917,7]
[340998727,1730226847397,273.37336231,0.00021917,7]
[340998728,1730226862280,273.37336231,0.00021917,7]
[340998729,1730226870383,3369.18718855,0.00021917,7]